{"text_format":"1","workbook":"xlsx","n_sheets":2,"sheets":["Budget","Instructions"],"not_rendered":{"charts":0,"images":0,"macros":0,"external_links":0,"defined_names":4,"comments":0,"pivot_tables":0},"unopened":[],"bounds":{"document_bytes":16777216,"sheet_cells":100000,"rows_first":2000,"rows_last":500,"rows_between":2000,"halvings":0,"cell_chars":16384,"cell_head_chars":4096},"cells_cut":0,"cells_raw":0,"read":"whole","date_system":"1900"}

{"sheet":"Budget","index":0,"n_rows":53,"n_cols":9,"rows_kept":53,"cut":false,"hidden":false,"merged":[[0,0,0,8]]}
["Budget de la demande de subvention - Évolution-Compétences volet Innovation et connaissance"]
[]
["Nature de la dépense","Description de la dépense","Coût unitaire","Unité","Unité","Unité","Taxes (100 % des taxes)","Montant demandé","Montant proposé"]
["Dépenses principales"]
["Salaire des professionnels et professionnelles et des assistants et assistantes de recherche qui collaborent directement au projet",null,null,null,null,null,null,{"$f":"+C5*D5*E5*F5","v":0}]
["Honoraires professionnels (consultation, recherche, élaboration ou adaptation de contenus, recrutement, diffusion d'une formation, accompagnement, promotion, etc.)",null,null,null,null,null,{"$f":"0.14975*(C6*D6*E6*F6)","v":0},{"$f":"+C6*D6*E6*F6","v":0},{"$f":"+C6*D6*E6*F6","v":0}]
["Salaire de base des expertes et experts de métier",null,null,null,null,null,null,{"$f":"+C7*D7*E7*F7","v":0},{"$f":"+C7*D7*E7*F7","v":0}]
["Salaire de base des participantes et participants ",null,null,null,null,null,null,{"$f":"+C8*D8*E8*F8","v":0},0]
["Déplacement & Hébergement"]
["Frais de déplacement (chercheuses, chercheurs, expertes et experts, formatrices, formateurs, participantes, participants, chargées de projet, chargés de projet)",null,null,null,null,null,null,{"$f":"+C10*D10*E10*F10","v":0},{"$f":"+C10*D10*E10*F10","v":0}]
["Frais d'hébergement (chercheuses, chercheurs, expertes et experts, formatrices, formateurs, participantes, participants, chargées de projet, chargés de projet)",null,null,null,null,null,{"$f":"0.14975*(C11*D11*E11*F11)","v":0},{"$f":"+C11*D11*E11*F11","v":0},{"$f":"+C11*D11*E11*F11","v":0}]
["Frais de repas (chercheuses, chercheurs, expertes et experts, formatrices, formateurs, participantes, participants)",null,null,null,null,null,{"$f":"0.14975*(C12*D12*E12*F12)","v":0},{"$f":"+C12*D12*E12*F12","v":0},{"$f":"+C12*D12*E12*F12","v":0}]
["Matériel didactique"]
["Matériel didactique",null,null,null,null,null,{"$f":"0.14975*(C14*D14*E14*F14)","v":0},{"$f":"+C14*D14*E14*F14","v":0},{"$f":"+C14*D14*E14*F14","v":0}]
["Révision linguistique du matériel didactique",null,null,null,null,null,{"$f":"0.14975*(C15*D15*E15*F15)","v":0},{"$f":"+C15*D15*E15*F15","v":0},0]
["Graphisme du matériel didactique",null,null,null,null,null,{"$f":"0.14975*(C16*D16*E16*F16)","v":0},{"$f":"+C16*D16*E16*F16","v":0},0]
["Frais d'infographie du matériel didactique",null,null,null,null,null,{"$f":"0.14975*(C17*D17*E17*F17)","v":0},{"$f":"+C17*D17*E17*F17","v":0},0]
["Frais d'impression du matériel didactique",null,null,null,null,null,{"$f":"0.14975*(C18*D18*E18*F18)","v":0},{"$f":"+C18*D18*E18*F18","v":0},0]
["Autres dépenses liées à la réalisation du projet "]
[]
["Location de salle incluant le matériel audiovisuel",null,null,null,null,null,{"$f":"0.14975*(C21*D21*E21*F21)","v":0},{"$f":"+C21*D21*E21*F21","v":0},{"$f":"+C21*D21*E21*F21","v":0}]
["Frais de tests de classement",null,null,null,null,null,0,{"$f":"+C22*D22*E22*F22","v":0},0]
["Matériel promotionnel (révision, graphisme, infographie, impression)",null,null,null,null,null,0,{"$f":"+C23*D23*E23*F23","v":0},0]
["Location d'équipements",null,null,null,null,null,0,{"$f":"+C24*D24*E24*F24","v":0},0]
["Frais liés à l'achat d'une licence d'un matériel informatique",null,null,null,null,null,{"$f":"0.14975*(C25*D25*E25*F25)","v":0},{"$f":"+C25*D25*E25*F25","v":0},0]
["Frais liés à l'utilisation d'une plateforme Web",null,null,null,null,null,0,0,0]
["Frais d'utilisation d'une formation en ligne",null,null,null,null,null,0,0]
["Autres dépenses liées à l'acquisition ou l'utilisation des outils technologiques",null,null,null,null,null,0,0,0]
["Honoraires professionnels d'un interprète pour la formation de personnes malentendantes",null,null,null,null,null,{"$f":"0.14975*(C29*D29*E29*F29)","v":0},{"$f":"+C29*D29*E29*F29","v":0},{"$f":"+C29*D29*E29*F29","v":0}]
["Honoraires professionnels d’un accompagnateur pour la formation de personnes malentendantes",null,null,null,null,null,0,0,0]
["Les frais encourus pour l’adaptation du matériel\npédagogique selon la nature du handicap",null,null,null,null,null,0,0,0]
["Dépenses liées à l'administration du projet par l'organisation responsable du projet et ses partenaires"]
["Salaire et charges sociales du ou des personnes responsables du projet",null,null,null,null,null,null,{"$f":"+C33*D33*E33*F33","v":0},{"$f":"+C33*D33*E33*F33","v":0}]
["Salaire et charges sociales du personnel de l'organisation partenaire",null,null,null,null,null,null,{"$f":"+C34*D34*E34*F34","v":0},{"$f":"+C34*D34*E34*F34","v":0}]
["Remboursement de 50 % des taxes admissibles",null,null,null,null,null,null,{"$f":"0.5*SUM(G5:G34)","v":0},{"$f":"0.5*SUM(G6:G34)","v":0}]
["Total partiel",null,null,null,null,null,null,{"$f":"SUM(H5:H35)","v":0},{"$f":"SUM(I6:I35)","v":0}]
["Frais d'administration (maximum 10 % du montant admissible)",null,null,null,null,null,null,{"$f":"+H36*0.1","v":0},{"$f":"+I36*0.1","v":0}]
["Montant demandé ",null,null,null,null,null,null,{"$f":"H36+H37","v":0},{"$f":"I36+I37","v":0}]
["Nature du revenu","Description du revenu","Revenu unitaire","Unité","Unité","Unité","Taxes (100 % des taxes)","Montant "]
["Contribution financière de l'organiation responsable du projet"]
[null,null,null,null,null,null,null,{"$f":"+C41*D41*E41*F41","v":0}]
[null,null,null,null,null,null,{"$f":"0.14975*(C42*D42*E42*F42)","v":0},{"$f":"+C42*D42*E42*F42","v":0}]
[null,null,null,null,null,null,{"$f":"0.14975*(C43*D43*E43*F43)","v":0},{"$f":"+C43*D43*E43*F43","v":0}]
["Contribution financière du ou des partenaires"]
[null,null,null,null,null,null,null,{"$f":"+C45*D45*E45*F45","v":0}]
[null,null,null,null,null,null,{"$f":"0.14975*(C46*D46*E46*F46)","v":0},{"$f":"+C46*D46*E46*F46","v":0}]
[null,null,null,null,null,null,{"$f":"0.14975*(C47*D47*E47*F47)","v":0},{"$f":"+C47*D47*E47*F47","v":0}]
[null,null,null,null,null,null,{"$f":"0.14975*(C48*D48*E48*F48)","v":0},{"$f":"+C48*D48*E48*F48","v":0}]
["Autres revenus"]
[null,null,null,null,null,null,null,{"$f":"+C50*D50*E50*F50","v":0}]
[null,null,null,null,null,null,{"$f":"0.14975*(C51*D51*E51*F51)","v":0},{"$f":"+C51*D51*E51*F51","v":0}]
[null,null,null,null,null,null,0,{"$f":"+C52*D52*E52*F52","v":0}]
["Total des revenus",null,null,null,null,null,null,{"$f":"SUM(H41:H52)","v":0},{"$f":"#REF!+#REF!","v":{"$error":"#REF!"}}]

{"sheet":"Instructions","index":1,"n_rows":37,"n_cols":1,"rows_kept":37,"cut":false,"hidden":false,"merged":[[22,0,22,10],[18,0,18,10],[26,0,26,10],[23,0,23,10],[8,0,8,10],[7,0,7,10],[17,0,17,10],[21,0,21,10],[19,0,19,10],[20,0,20,10],[9,0,9,10],[11,0,11,10],[12,0,12,10],[13,0,13,10],[15,0,15,10],[14,0,14,10],[16,0,16,10],[0,0,0,10],[1,0,1,10],[3,0,3,10],[5,0,5,10],[6,0,6,10],[37,0,37,10],[24,0,24,10],[27,0,27,10],[33,0,33,10],[35,0,35,10],[36,0,36,10],[28,0,28,10],[29,0,29,10],[25,0,25,10],[30,0,30,10],[31,0,31,10],[32,0,32,10]]}
["Budget de la demande de subvention"]
["- Instructions -"]
[]
["1. Barèmes du programme "]
[]
["Honoraires professionnels: Selon la complexité des travaux à accomplir, le remboursement des dépenses pourrait atteindre 150 $ l’heure."]
["Salaire de base des participants: jusqu’à un maximum de 25 $ l’heure par participante ou participant."]
["Frais de déplacement et d’hébergement: la distance à parcourir doit être de 100 km aller ou plus. Selon ce qui est le plus économique, le domicile ou le lieu de travail est déterminé comme point de départ de ce déplacement (jusqu’à 8 000 km : 0,545 $/km et plus de 8 000 km : 0,485 $/km)."]
[]
["2. Instructions pour compléter le budget de la demande de subvention"]
[]
["Colonne Nature de la dépense "]
["Les dépenses admissibles sont présentées par catégorie (Élaboration ou adaptation du contenu de formation, diffusion de formation, déplacement, hébergement, matériel didactique, autres dépenses liées à la réalisation du projet et dépenses liées à l'administration du projet par l'organisation). Il est important de ne pas changer l'appellation des postes budgétaires."]
["Veuillez compléter seulement les lignes pour les postes budgétaires visés par votre demande de subvention. "]
[]
["Colonne Description de la dépense "]
["Décrire le détail des calculs en utilisant les unités de mesure appropriées. Voici des exemples:"]
[]
["Honoraires professionnels : 90 $/h x 16 h x 2 groupes"]
["Salaire de base des participantes et participants: 12,65 $/h x 16 h x 12 participantes et participants"]
["Déplacement de la formatrice ou du formateur: 0,46 $/km x 600 km x 2 déplacements"]
[]
["Colonne Coût unitaire"]
["Inscrire le premier facteur de la multiplication présenté dans la colonne Description de la dépense pour chaque catégorie de dépense (Ex:  taux horaire des formatrices, formateurs et des participantes, participants, coût/participante ou participant pour le matériel didactique, coût/km pour les frais de déplacement, le coût/jour pour les frais d'hébergement et la location de salle, etc.). C'est le coût unitaire en $."]
[]
["Colonnes Unité"]
["Inscrire les autres facteurs de multiplication. Pour les cases vides, inscrire le chiffre 1."]
[]
["Colonne Taxes (100 % des taxes)"]
["Les taxes sont calculées automatiquement pour les dépenses taxables. La portion remboursable des taxes (50 %) est calculée automatiquement à la ligne Remboursement de 50 % des taxes admissibles."]
["Colonne Nature du revenu"]
["Utiliser les catégories de revenus identifiées ou inscrire les catégories de revenu. "]
["Colonne Description du revenu"]
["Par exemple, salaire et charges sociales payés par des fonds publics, matériel promotionnel, utilisation des équipements, etc."]
[]
["Colonne Montant demandé"]
["Le montant demandé est calculé automatiquement en tenant compte du taux de remboursement applicable."]